[Event "CZE-ch U14 Girls 2020"]
[Site "Kouty nad Desnou"]
[Date "2020.03.09"]
[Round "3.19"]
[White "Stribna, Julie"]
[Black "Jirotova, Eliska"]
[Result "0-1"]
[ECO "B22"]
[WhiteElo "1046"]
[BlackElo "1333"]
[Annotator "NA"]
[PlyCount "98"]
[EventDate "2020.03.07"]
[EventCountry "CZE"]
[SourceTitle "playchess.com"]
[Source "ChessBase"]
[SourceQuality "1"]
[TimeControl "5400+30"]

1. e4 {[%emt 0:00:00]} c5 {[%emt 0:01:04]} 2. c3 {[%emt 0:00:00]} Nc6 {[%emt 0:00:30]} 3. d4 {[%emt 0:00:01]} cxd4 {[%emt 0:00:19]} 4. cxd4 {[%emt 0:00:09]} d6 {[%emt 0:00:53]} 5. Nc3 {[%emt 0:01:21]} g6 {[%emt 0:01:03]} 6. Be3 {[%emt 0:02:13]} Bg7 {[%emt 0:01:07]} 7. Nf3 {[%emt 0:01:19]} Nf6 {[%emt 0:02:18]} 8. Bb5 {[%emt 0:02:45]} O-O {[%emt 0:01:46]} 9. h3 {[%emt 0:02:59]} a6 {[%emt 0:03:43]} 10. Bc4 {[%emt 0:03:00]} b5 {[%emt 0:04:38]} 11. Bd3 {[%emt 0:11:30]} Bd7 {[%emt 0:04:30]} 12. a3 {[%emt 0:02:46]} Rc8 {[%emt 0:03:22]} 13. Rc1 {[%emt 0:04:32]} e5 {[%emt 0:10:41]} 14. dxe5 {[%emt 0:05:32]} dxe5 {[%emt 0:02:20]} 15. O-O {[%emt 0:06:04]} Ne8 {[%emt 0:02:31]} 16. Qd2 {[%emt 0:05:11]} Nd4 {[%emt 0:02:39]} 17. Bxd4 {[%emt 0:04:07]} exd4 {[%emt 0:00:34]} 18. Ne2 {[%emt 0:01:26]} Bc6 {[%emt 0:01:30]} 19. Ng3 {[%emt 0:04:13]} Qb6 {[%emt 0:08:18]} 20. b4 {[%emt 0:05:44]} Nd6 {[%emt 0:09:27]} 21. Rfe1 {[%emt 0:09:00]} Bb7 {[%emt 0:01:44]} 22. Rxc8 {[%emt 0:09:53]} Rxc8 {[%emt 0:00:24]} 23. Rc1 {[%emt 0:02:46]} Nc4 {[%emt 0:01:25]} 24. Qa2 {[%emt 0:04:43]} Ne5 {[%emt 0:08:08]} 25. Rxc8+ {[%emt 0:00:44]} Bxc8 {[%emt 0:00:07]} 26. Nxe5 {[%emt 0:00:59]} Bxe5 {[%emt 0:00:07]} 27. Qc2 {[%emt 0:00:57]} Be6 {[%emt 0:00:24]} 28. Qc5 {[%emt 0:05:11]} Qxc5 {[%emt 0:03:17]} 29. bxc5 {[%emt 0:00:09]} Bc4 {[%emt 0:00:17]} 30. Bc2 {[%emt 0:02:30]} a5 {[%emt 0:02:22]} 31. Nf1 {[%emt 0:02:44]} b4 {[%emt 0:01:47]} 32. axb4 {[%emt 0:00:30]} axb4 {[%emt 0:00:12]} 33. Nd2 {[%emt 0:00:44]} Bb5 {[%emt 0:01:45]} 34. Bb3 {[%emt 0:00:47]} Kf8 {[%emt 0:01:38]} 35. g3 {[%emt 0:00:24]} d3 {[%emt 0:01:03]} 36. Kf1 {[%emt 0:00:26]} Bd4 {[%emt 0:01:02]} 37. Bc4 {[%emt 0:00:36]} Bxc4 {[%emt 0:01:15]} 38. Nxc4 {[%emt 0:00:07]} b3 {[%emt 0:00:43]} 39. Nd2 {[%emt 0:00:46]} b2 {[%emt 0:01:12]} 40. c6 {[%emt 0:00:00]} Ke7 {[%emt 0:00:00]} 41. Nb1 {[%emt 0:00:00]} Kd6 {[%emt 0:00:00]} 42. Ke1 {[%emt 0:00:00]} Kxc6 {[%emt 0:00:00]} 43. f3 {[%emt 0:00:00]} Be3 {[%emt 0:00:00]} 44. Kd1 {[%emt 0:00:00]} Kc5 {[%emt 0:00:00]} 45. e5 {[%emt 0:00:00]} Kd4 {[%emt 0:00:00]} 46. f4 {[%emt 0:00:00]} Bf2 {[%emt 0:00:00]} 47. g4 {[%emt 0:00:00]} Bg3 {[%emt 0:00:00]} 48. f5 {[%emt 0:00:00]} Bxe5 {[%emt 0:00:00]} 49. fxg6 {[%emt 0:00:00]} fxg6 {[%emt 0:00:00]} 0-1

[Event "CZE-ch U14 Girls 2020"]
[Site "Kouty nad Desnou"]
[Date "2020.03.09"]
[Round "3.21"]
[White "Nespora, Tatana"]
[Black "Nagyova, Daniela"]
[Result "0-1"]
[ECO "C47"]
[WhiteElo "1310"]
[BlackElo "1560"]
[Annotator "NA"]
[PlyCount "60"]
[EventDate "2020.03.07"]
[EventCountry "CZE"]
[SourceTitle "playchess.com"]
[Source "ChessBase"]
[SourceQuality "1"]
[TimeControl "5400+30"]

1. e4 {[%emt 0:00:00]} e5 {[%emt 0:00:00]} 2. Nf3 {[%emt 0:00:00]} Nc6 {[%emt 0:00:02]} 3. Nc3 {[%emt 0:00:07]} Nf6 {[%emt 0:00:32]} 4. d4 {[%emt 0:00:14]} exd4 {[%emt 0:00:30]} 5. Nd5 {[%emt 0:00:17]} Be7 {[%emt 0:00:51]} 6. Nxd4 {[%emt 0:07:21]} O-O {[%emt 0:02:49]} 7. Be3 {[%emt 0:06:00]} Re8 {[%emt 0:04:47]} 8. Bd3 {[%emt 0:05:51]} Nxd4 {[%emt 0:04:04]} 9. Bxd4 {[%emt 0:03:42]} Nxd5 {[%emt 0:02:00]} 10. exd5 {[%emt 0:01:15]} Bc5+ {[%emt 0:10:55]} 11. Be2 {[%emt 0:06:42]} Bxd4 {[%emt 0:01:12]} 12. Qxd4 {[%emt 0:00:23]} Qe7 {[%emt 0:02:43]} 13. Qd3 {[%emt 0:00:43]} d6 {[%emt 0:01:22]} 14. Kd1 {[%emt 0:05:21]} Qe5 {[%emt 0:02:07]} 15. Rb1 {[%emt 0:01:32]} Bf5 {[%emt 0:01:52]} 16. Qd2 {[%emt 0:01:20]} c6 {[%emt 0:03:11]} 17. dxc6 {[%emt 0:04:04]} bxc6 {[%emt 0:00:23]} 18. Bd3 {[%emt 0:00:39]} Bxd3 {[%emt 0:01:16]} 19. Qxd3 {[%emt 0:00:31]} Rab8 {[%emt 0:01:13]} 20. b3 {[%emt 0:00:57]} Rb5 {[%emt 0:03:10]} 21. Kc1 {[%emt 0:04:46]} Qc5 {[%emt 0:02:57]} 22. Qd2 {[%emt 0:06:14]} Qe5 {[%emt 0:02:22]} 23. g3 {[%emt 0:07:49]} Qe4 {[%emt 0:03:01]} 24. Rg1 {[%emt 0:02:48]} Rd5 {[%emt 0:01:01]} 25. Qc3 {[%emt 0:02:38]} Rc5 {[%emt 0:01:53]} 26. Qd2 {[%emt 0:00:21]} Ree5 {[%emt 0:01:32]} 27. Rb2 {[%emt 0:02:05]} h6 {[%emt 0:02:07]} 28. Qxd6 {[%emt 0:07:23]} Rcd5 {[%emt 0:01:50]} 29. Qb8+ {[%emt 0:00:42]} Re8 {[%emt 0:02:53]} 30. Qb4 {[%emt 0:00:18]} Qxb4 {[%emt 0:00:20]} 0-1

[Event "CZE-ch U14 Girls 2020"]
[Site "Kouty nad Desnou"]
[Date "2020.03.09"]
[Round "3.22"]
[White "Ticha, Sofie"]
[Black "Stavova, Helena"]
[Result "1/2-1/2"]
[ECO "C56"]
[WhiteElo "1216"]
[BlackElo "1146"]
[Annotator "NA RC"]
[PlyCount "71"]
[EventDate "2020.03.07"]
[EventCountry "CZE"]
[SourceTitle "playchess.com"]
[Source "ChessBase"]
[SourceQuality "1"]
[TimeControl "5400+30"]

1. e4 {[%emt 0:00:00]} e5 {[%emt 0:00:00]} 2. Nf3 {[%emt 0:00:00]} Nc6 {[%emt 0:00:03]} 3. d4 {[%emt 0:00:00]} exd4 {[%emt 0:00:32]} 4. Bc4 {[%emt 0:00:00]} Nf6 {[%emt 0:01:34]} 5. O-O {[%emt 0:00:20]} Nxe4 {[%emt 0:01:37]} 6. Re1 {[%emt 0:00:28]} d5 {[%emt 0:00:20]} 7. Bxd5 {[%emt 0:00:13]} Qxd5 {[%emt 0:00:34]} 8. Nc3 {[%emt 0:00:12]} Qh5 {[%emt 0:01:35]} 9. Nxe4 {[%emt 0:00:30]} Be6 {[%emt 0:01:40]} 10. Bg5 {[%emt 0:01:50]} Bd6 {[%emt 0:01:18]} 11. Nxd6+ {[%emt 0:00:32]} cxd6 {[%emt 0:00:22]} 12. Bf4 {[%emt 0:01:42]} Rd8 {[%emt 0:06:05]} 13. Bg5 {[%emt 0:05:08]} Rc8 {[%emt 0:01:09]} 14. c3 {[%emt 0:01:27]} O-O {[%emt 0:04:02]} 15. cxd4 {[%emt 0:01:04]} Bg4 {[%emt 0:03:54]} 16. Bf4 {[%emt 0:02:49]} d5 {[%emt 0:01:42]} 17. Rc1 {[%emt 0:16:25]} Rfe8 {[%emt 0:05:19]} 18. Qd3 {[%emt 0:11:23]} Bxf3 {[%emt 0:04:01]} 19. gxf3 {[%emt 0:02:06]} Re6 {[%emt 0:04:10]} 20. Rxe6 {[%emt 0:01:21]} fxe6 {[%emt 0:00:14]} 21. Kh1 {[%emt 0:00:46]} Rf8 {[%emt 0:01:24]} 22. Qe3 {[%emt 0:02:09]} Qf5 {[%emt 0:02:12]} 23. Bd6 {[%emt 0:07:10]} Qxf3+ {[%emt 0:01:14]} 24. Qxf3 {[%emt 0:01:43]} Rxf3 {[%emt 0:00:16]} 25. Kg2 {[%emt 0:00:13]} Rf7 {[%emt 0:04:04]} 26. b4 {[%emt 0:00:41]} h6 {[%emt 0:03:56]} 27. Bc5 {[%emt 0:02:32]} b6 {[%emt 0:00:40]} 28. Bxb6 {[%emt 0:00:46]} Nxb4 {[%emt 0:00:27]} 29. Bc5 {[%emt 0:03:24]} Nd3 {[%emt 0:01:30]} 30. Rf1 {[%emt 0:00:53]} e5 {[%emt 0:01:27]} 31. f3 {[%emt 0:02:16]} Nf4+ {[%emt 0:02:19]} 32. Kg3 {[%emt 0:02:40]} Ne2+ {[%emt 0:04:15]} 33. Kf2 {[%emt 0:01:50]} Nxd4 {[%emt 0:00:52]} 34. Bxd4 {[%emt 0:00:36]} exd4 {[%emt 0:00:09]} 35. Rd1 {[%emt 0:00:10]} Rf4 {[%emt 0:01:39]} 36. Rd3 {[%emt 0:02:00]} 1/2-1/2

[Event "CZE-ch U14 Girls 2020"]
[Site "Kouty nad Desnou"]
[Date "2020.03.09"]
[Round "4.12"]
[White "Martinkova, Magdalena"]
[Black "Fizerova, Lucie"]
[Result "1-0"]
[ECO "B89"]
[WhiteElo "1473"]
[BlackElo "1574"]
[Annotator "NA"]
[PlyCount "72"]
[EventDate "2020.03.07"]
[EventCountry "CZE"]
[SourceTitle "playchess.com"]
[Source "ChessBase"]
[SourceQuality "1"]
[TimeControl "5400+30"]

1. e4 {[%emt 0:00:00]} c5 {[%emt 0:00:00]} 2. Nf3 {[%emt 0:00:00]} d6 {[%emt 0:00:00]} 3. d4 {[%emt 0:00:00]} cxd4 {[%emt 0:00:00]} 4. Nxd4 {[%emt 0:00:00]} Nf6 {[%emt 0:00:07]} 5. Nc3 {[%emt 0:00:00]} Nc6 {[%emt 0:00:23]} 6. Bc4 {[%emt 0:00:00]} e6 {[%emt 0:00:30]} 7. Be3 {[%emt 0:00:28]} Be7 {[%emt 0:00:30]} 8. Bb3 {[%emt 0:00:30]} O-O {[%emt 0:00:30]} 9. Qe2 {[%emt 0:00:30]} a6 {[%emt 0:02:10]} 10. O-O-O {[%emt 0:01:37]} Qc7 {[%emt 0:00:51]} 11. Rhg1 {[%emt 0:05:45]} Na5 {[%emt 0:03:20]} 12. Kb1 {[%emt 0:02:44]} b5 {[%emt 0:01:25]} 13. f3 {[%emt 0:03:10]} Nxb3 {[%emt 0:03:58]} 14. cxb3 {[%emt 0:00:14]} Bd7 {[%emt 0:02:31]} 15. Rc1 {[%emt 0:05:30]} Qb7 {[%emt 0:01:15]} 16. g4 {[%emt 0:01:56]} Rfb8 {[%emt 0:02:17]} 17. g5 {[%emt 0:00:55]} Ne8 {[%emt 0:00:46]} 18. h4 {[%emt 0:02:33]} a5 {[%emt 0:04:02]} 19. h5 {[%emt 0:03:54]} b4 {[%emt 0:04:05]} 20. Na4 {[%emt 0:03:33]} Bxa4 {[%emt 0:01:03]} 21. bxa4 {[%emt 0:00:09]} b3 {[%emt 0:03:01]} 22. a3 {[%emt 0:04:31]} Qd7 {[%emt 0:02:52]} 23. Nc6 {[%emt 0:08:53]} Rc8 {[%emt 0:02:05]} 24. Nxe7+ {[%emt 0:00:36]} Qxe7 {[%emt 0:00:08]} 25. g6 {[%emt 0:02:30]} Rxc1+ {[%emt 0:01:13]} 26. Bxc1 {[%emt 0:03:02]} fxg6 {[%emt 0:00:21]} 27. hxg6 {[%emt 0:00:41]} h6 {[%emt 0:00:07]} 28. Qb5 {[%emt 0:19:17]} Qa7 {[%emt 0:01:25]} 29. Rd1 {[%emt 0:06:46]} Rb8 {[%emt 0:00:31]} 30. Qc4 {[%emt 0:01:05]} Qe7 {[%emt 0:01:21]} 31. Bf4 {[%emt 0:02:06]} Kh8 {[%emt 0:02:03]} 32. Rd3 {[%emt 0:06:45]} e5 {[%emt 0:02:14]} 33. Rxb3 {[%emt 0:02:04]} Rd8 {[%emt 0:04:48]} 34. Bd2 {[%emt 0:01:22]} Nf6 {[%emt 0:01:29]} 35. Bxa5 {[%emt 0:02:14]} Ra8 {[%emt 0:01:04]} 36. Qc7 {[%emt 0:00:48]} Qf8 {[%emt 0:01:35]} 1-0

[Event "CZE-ch U14 Girls 2020"]
[Site "Kouty nad Desnou"]
[Date "2020.03.09"]
[Round "4.13"]
[White "Trasakova, Adela"]
[Black "Zelbova, Lada"]
[Result "1-0"]
[ECO "D77"]
[WhiteElo "1639"]
[BlackElo "1646"]
[Annotator "NA RC"]
[PlyCount "139"]
[EventDate "2020.03.07"]
[EventCountry "CZE"]
[SourceTitle "playchess.com"]
[Source "ChessBase"]
[SourceQuality "1"]
[TimeControl "5400+30"]

1. d4 {[%emt 0:00:00]} Nf6 {[%emt 0:00:00]} 2. Nf3 {[%emt 0:00:07]} g6 {[%emt 0:00:25]} 3. c4 {[%emt 0:01:37]} Bg7 {[%emt 0:01:01]} 4. g3 {[%emt 0:01:13]} O-O {[%emt 0:09:07]} 5. Bg2 {[%emt 0:02:19]} e6 {[%emt 0:05:59]} 6. O-O {[%emt 0:03:20]} d5 {[%emt 0:03:16]} 7. Bg5 {[%emt 0:05:17]} h6 {[%emt 0:01:54]} 8. Bf4 {[%emt 0:02:30]} Kh7 {[%emt 0:04:31]} 9. Nc3 {[%emt 0:03:54]} c6 {[%emt 0:12:24]} 10. Qc2 {[%emt 0:05:42]} Nbd7 {[%emt 0:03:53]} 11. c5 {[%emt 0:05:36]} Ne8 {[%emt 0:10:41]} 12. b4 {[%emt 0:05:50]} f5 {[%emt 0:06:24]} 13. e3 {[%emt 0:08:08]} Qe7 {[%emt 0:05:28]} 14. Be5 {[%emt 0:05:01]} g5 {[%emt 0:04:48]} 15. a4 {[%emt 0:08:03]} g4 {[%emt 0:06:11]} 16. Bxg7 {[%emt 0:01:33]} Qxg7 {[%emt 0:00:06]} 17. Nh4 {[%emt 0:00:43]} Nef6 {[%emt 0:02:08]} 18. b5 {[%emt 0:03:57]} Ne4 {[%emt 0:03:10]} 19. Bxe4 {[%emt 0:04:10]} fxe4 {[%emt 0:00:07]} 20. Nxe4 {[%emt 0:06:22]} dxe4 {[%emt 0:04:02]} 21. Qxe4+ {[%emt 0:00:21]} Kg8 {[%emt 0:01:21]} 22. Qxe6+ {[%emt 0:03:27]} Kh7 {[%emt 0:02:10]} 23. Qe4+ {[%emt 0:07:52]} Kg8 {[%emt 0:00:09]} 24. bxc6 {[%emt 0:01:39]} bxc6 {[%emt 0:02:15]} 25. Qxc6 {[%emt 0:01:11]} Rb8 {[%emt 0:00:31]} 26. Qe6+ {[%emt 0:02:21]} Kh7 {[%emt 0:00:59]} 27. Qe4+ {[%emt 0:00:53]} Kg8 {[%emt 0:00:16]} 28. Rab1 {[%emt 0:00:53]} Nf6 {[%emt 0:03:17]} 29. Qg6 {[%emt 0:01:32]} Bb7 {[%emt 0:02:15]} 30. Qxg7+ {[%emt 0:00:47]} Kxg7 {[%emt 0:00:06]} 31. Nf5+ {[%emt 0:01:17]} Kg6 {[%emt 0:01:15]} 32. Nh4+ {[%emt 0:01:01]} Kh7 {[%emt 0:01:01]} 33. Ng2 {[%emt 0:01:10]} Be4 {[%emt 0:00:54]} 34. Rxb8 {[%emt 0:01:20]} Rxb8 {[%emt 0:00:04]} 35. Rc1 {[%emt 0:00:41]} Bc6 {[%emt 0:01:02]} 36. a5 {[%emt 0:01:35]} Rb5 {[%emt 0:01:06]} 37. Ra1 {[%emt 0:00:33]} Kg6 {[%emt 0:01:02]} 38. Nf4+ {[%emt 0:00:56]} Kf5 {[%emt 0:00:37]} 39. Nd3 {[%emt 0:01:16]} Ke6 {[%emt 0:01:41]} 40. Ne5 {[%emt 0:01:18]} Bd5 {[%emt 0:01:26]} 41. Rc1 {[%emt 0:00:00]} Ke7 {[%emt 0:00:00]} 42. c6 {[%emt 0:00:00]} Rb8 {[%emt 0:00:00]} 43. c7 {[%emt 0:00:00]} Rc8 {[%emt 0:00:00]} 44. Nc6+ {[%emt 0:00:00]} Kd7 {[%emt 0:00:00]} 45. Nxa7 {[%emt 0:00:00]} Rxc7 {[%emt 0:00:00]} 46. Rxc7+ {[%emt 0:00:00]} Kxc7 {[%emt 0:00:00]} 47. Nb5+ {[%emt 0:00:00]} Kb7 {[%emt 0:00:00]} 48. Nc3 {[%emt 0:00:00]} Bf3 {[%emt 0:00:00]} 49. Kf1 {[%emt 0:00:00]} Ka6 {[%emt 0:00:00]} 50. Ke1 {[%emt 0:00:00]} Kxa5 {[%emt 0:00:00]} 51. Kd2 {[%emt 0:00:00]} Ne4+ {[%emt 0:00:00]} 52. Kd3 {[%emt 0:00:00]} Nxc3 {[%emt 0:00:28]} 53. Kxc3 {[%emt 0:00:00]} Kb5 {[%emt 0:02:43]} 54. Kd3 {[%emt 0:00:00]} Kc6 {[%emt 0:01:09]} 55. e4 {[%emt 0:00:00]} Kd6 {[%emt 0:01:14]} 56. Ke3 {[%emt 0:00:44]} Ke7 {[%emt 0:01:42]} 57. d5 {[%emt 0:01:26]} Kd7 {[%emt 0:00:58]} 58. Kf4 {[%emt 0:03:54]} Kd6 {[%emt 0:00:35]} 59. Kf5 {[%emt 0:00:33]} Kc5 {[%emt 0:00:57]} 60. Ke5 {[%emt 0:01:07]} Be2 {[%emt 0:00:18]} 61. d6 {[%emt 0:01:32]} Bb5 {[%emt 0:00:33]} 62. Ke6 {[%emt 0:00:40]} Kd4 {[%emt 0:00:34]} 63. d7 {[%emt 0:02:20]} Bxd7+ {[%emt 0:00:14]} 64. Kxd7 {[%emt 0:00:08]} Ke5 {[%emt 0:00:51]} 65. Ke7 {[%emt 0:00:34]} h5 {[%emt 0:00:24]} 66. Kf7 {[%emt 0:00:40]} Kxe4 {[%emt 0:00:28]} 67. Kg6 {[%emt 0:00:23]} h4 {[%emt 0:00:32]} 68. gxh4 {[%emt 0:00:48]} Kf3 {[%emt 0:00:16]} 69. Kg5 {[%emt 0:00:45]} Kxf2 {[%emt 0:00:51]} 70. Kxg4 {[%emt 0:00:11]} 1-0

[Event "CZE-ch U14 Girls 2020"]
[Site "Kouty nad Desnou"]
[Date "2020.03.09"]
[Round "4.14"]
[White "Voriskova, Anna"]
[Black "Markova, Karolina"]
[Result "1-0"]
[ECO "A36"]
[WhiteElo "1820"]
[BlackElo "1497"]
[Annotator "NA"]
[PlyCount "99"]
[EventDate "2020.03.07"]
[EventCountry "CZE"]
[SourceTitle "playchess.com"]
[Source "ChessBase"]
[SourceQuality "1"]
[TimeControl "5400+30"]

1. c4 {[%emt 0:00:00]} Nf6 {[%emt 0:00:00]} 2. Nc3 {[%emt 0:00:00]} g6 {[%emt 0:00:21]} 3. g3 {[%emt 0:00:00]} Bg7 {[%emt 0:00:30]} 4. Bg2 {[%emt 0:00:00]} d6 {[%emt 0:00:45]} 5. e4 {[%emt 0:00:11]} O-O {[%emt 0:03:58]} 6. Nge2 {[%emt 0:00:10]} c5 $11 {[%emt 0:01:05]} 7. O-O {[%emt 0:00:52]} Nc6 {[%emt 0:00:46]} 8. d3 {[%emt 0:01:29]} Rb8 {[%emt 0:04:01]} 9. Rb1 {[%emt 0:02:35]} a6 {[%emt 0:06:58]} 10. a3 {[%emt 0:03:09]} b5 {[%emt 0:02:04]} 11. cxb5 {[%emt 0:05:07]} axb5 {[%emt 0:02:00]} 12. b4 {[%emt 0:00:10]} cxb4 {[%emt 0:01:09]} 13. axb4 {[%emt 0:16:57]} Qc7 {[%emt 0:02:37]} 14. Bd2 {[%emt 0:05:18]} Ne5 {[%emt 0:07:58]} 15. Qc2 {[%emt 0:03:34]} Bd7 {[%emt 0:05:33]} 16. Rfc1 {[%emt 0:10:38]} Rfc8 {[%emt 0:03:44]} 17. Bf4 {[%emt 0:02:58]} Nh5 {[%emt 0:06:23]} 18. Qd2 {[%emt 0:06:29]} Nxf4 {[%emt 0:05:29]} 19. gxf4 {[%emt 0:01:44]} Nc6 {[%emt 0:06:02]} 20. Qe3 {[%emt 0:00:35]} Qd8 {[%emt 0:03:00]} 21. d4 {[%emt 0:01:43]} e5 {[%emt 0:04:56]} 22. dxe5 {[%emt 0:07:39]} dxe5 {[%emt 0:04:13]} 23. Nd5 {[%emt 0:00:16]} exf4 {[%emt 0:01:28]} 24. Nexf4 {[%emt 0:03:11]} Be5 {[%emt 0:02:24]} 25. Nd3 {[%emt 0:06:08]} Bg7 {[%emt 0:02:10]} 26. Nc5 {[%emt 0:03:18]} Nd4 {[%emt 0:00:54]} 27. Rd1 {[%emt 0:04:19]} Nc2 {[%emt 0:02:02]} 28. Qg3 {[%emt 0:10:16]} Be6 {[%emt 0:08:37]} 29. e5 {[%emt 0:01:40]} Qe8 {[%emt 0:02:23]} 30. Qb3 {[%emt 0:01:54]} Bf5 {[%emt 0:01:47]} 31. Be4 {[%emt 0:01:57]} Bxe4 {[%emt 0:02:19]} 32. Nxe4 {[%emt 0:00:55]} Qxe5 {[%emt 0:05:38]} 33. Nc5 {[%emt 0:00:37]} Qg5+ {[%emt 0:00:26]} 34. Kf1 {[%emt 0:00:35]} Nd4 {[%emt 0:01:28]} 35. Rxd4 {[%emt 0:00:14]} Bxd4 {[%emt 0:01:15]} 36. Ne4 {[%emt 0:00:15]} Qh4 {[%emt 0:00:25]} 37. Qd3 {[%emt 0:01:01]} Bg7 {[%emt 0:00:44]} 38. Rd1 {[%emt 0:00:29]} Rd8 {[%emt 0:00:44]} 39. Qc2 {[%emt 0:00:32]} Rbc8 {[%emt 0:00:32]} 40. Nc5 {[%emt 0:00:15]} Qh3+ {[%emt 0:00:19]} 41. Kg1 {[%emt 0:00:09]} Qg4+ {[%emt 0:00:18]} 42. Kf1 {[%emt 0:00:53]} Kh8 {[%emt 0:00:18]} 43. Qd2 {[%emt 0:00:24]} Qh3+ {[%emt 0:01:10]} 44. Kg1 {[%emt 0:00:33]} Be5 {[%emt 0:00:16]} 45. f4 {[%emt 0:00:33]} Qg4+ {[%emt 0:00:40]} 46. Kh1 {[%emt 0:00:26]} Bxf4 {[%emt 0:00:23]} 47. Qd4+ {[%emt 0:00:29]} Kg8 {[%emt 0:00:00]} 48. Nf6+ {[%emt 0:00:00]} Kf8 {[%emt 0:00:00]} 49. Ncd7+ {[%emt 0:00:00]} Rxd7 {[%emt 0:00:00]} 50. Nxd7+ {[%emt 0:00:00]} 1-0

[Event "CZE-ch U14 Girls 2020"]
[Site "Kouty nad Desnou"]
[Date "2020.03.09"]
[Round "4.15"]
[White "Hosova, Sandra"]
[Black "Pejrimovska, Viola Ruby"]
[Result "1/2-1/2"]
[ECO "E94"]
[WhiteElo "1297"]
[BlackElo "1600"]
[Annotator "NA RC"]
[PlyCount "178"]
[EventDate "2020.03.07"]
[EventCountry "CZE"]
[SourceTitle "playchess.com"]
[Source "ChessBase"]
[SourceQuality "1"]
[TimeControl "5400+30"]

1. d4 {[%emt 0:04:42]} Nf6 {[%emt 0:00:00]} 2. c4 {[%emt 0:00:44]} g6 {[%emt 0:00:02]} 3. Nf3 {[%emt 0:02:30]} Bg7 {[%emt 0:00:18]} 4. Nc3 {[%emt 0:01:30]} O-O {[%emt 0:00:15]} 5. e4 {[%emt 0:01:50]} d6 {[%emt 0:00:26]} 6. Be2 {[%emt 0:02:45]} Nbd7 {[%emt 0:04:07]} 7. O-O {[%emt 0:04:53]} e5 {[%emt 0:00:28]} 8. h3 {[%emt 0:06:37]} h6 {[%emt 0:02:40]} 9. Be3 {[%emt 0:02:11]} Re8 {[%emt 0:04:18]} 10. Qd3 {[%emt 0:06:06]} b6 {[%emt 0:01:47]} 11. b4 {[%emt 0:09:27]} Bb7 {[%emt 0:01:53]} 12. d5 {[%emt 0:02:33]} Kh7 {[%emt 0:09:49]} 13. Rfd1 {[%emt 0:04:58]} Nh5 {[%emt 0:02:23]} 14. g3 {[%emt 0:06:24]} Rf8 {[%emt 0:02:05]} 15. Nh4 {[%emt 0:02:15]} Nhf6 {[%emt 0:01:13]} 16. Rac1 {[%emt 0:02:45]} Ng8 {[%emt 0:02:26]} 17. Kh2 {[%emt 0:06:40]} Ne7 {[%emt 0:02:01]} 18. Rg1 {[%emt 0:00:56]} Kh8 {[%emt 0:11:03]} 19. Qd2 {[%emt 0:01:41]} Kh7 {[%emt 0:01:00]} 20. Qd3 {[%emt 0:00:22]} Kh8 {[%emt 0:00:29]} 21. Qd2 {[%emt 0:00:13]} Kh7 {[%emt 0:00:10]} 22. Qd3 {[%emt 0:00:22]} Nf6 {[%emt 0:20:32]} 23. g4 {[%emt 0:03:00]} Rh8 {[%emt 0:06:54]} 24. Nf3 {[%emt 0:02:38]} Kg8 {[%emt 0:01:37]} 25. Rh1 {[%emt 0:03:15]} Bc8 {[%emt 0:03:26]} 26. Rcg1 {[%emt 0:00:58]} Qd7 {[%emt 0:01:51]} 27. Kg2 {[%emt 0:02:29]} g5 {[%emt 0:06:18]} 28. Nd2 {[%emt 0:01:29]} Ng6 {[%emt 0:00:47]} 29. Kf1 {[%emt 0:00:56]} a6 {[%emt 0:04:17]} 30. f3 {[%emt 0:02:56]} Kf8 {[%emt 0:04:28]} 31. Kf2 {[%emt 0:02:07]} Ke7 {[%emt 0:01:13]} 32. Nf1 {[%emt 0:00:48]} Nf4 {[%emt 0:00:27]} 33. Bxf4 {[%emt 0:01:28]} gxf4 {[%emt 0:00:35]} 34. Nh2 {[%emt 0:02:56]} Bb7 {[%emt 0:00:47]} 35. Bf1 {[%emt 0:00:38]} Rag8 {[%emt 0:01:17]} 36. Bg2 {[%emt 0:01:38]} h5 {[%emt 0:01:35]} 37. Nf1 {[%emt 0:01:53]} Bf8 {[%emt 0:01:27]} 38. Nd2 {[%emt 0:01:20]} Bh6 {[%emt 0:01:23]} 39. Nb3 {[%emt 0:01:00]} Ra8 {[%emt 0:00:50]} 40. Bf1 {[%emt 0:00:34]} Bf8 {[%emt 0:00:45]} 41. g5 {[%emt 0:01:27]} Ng8 {[%emt 0:00:27]} 42. g6 {[%emt 0:00:25]} fxg6 {[%emt 0:00:19]} 43. Rxg6 {[%emt 0:00:09]} Nf6 {[%emt 0:00:33]} 44. Rhg1 {[%emt 0:01:10]} Qe8 {[%emt 0:00:41]} 45. c5 {[%emt 0:01:10]} Qf7 {[%emt 0:00:00]} 46. cxb6 {[%emt 0:00:00]} cxb6 {[%emt 0:00:00]} 47. b5 {[%emt 0:00:00]} Bh6 {[%emt 0:00:00]} 48. Na4 {[%emt 0:00:00]} Rhg8 {[%emt 0:00:00]} 49. R6g2 {[%emt 0:00:00]} Nd7 {[%emt 0:00:00]} 50. Rxg8 {[%emt 0:00:00]} Rxg8 {[%emt 0:00:00]} 51. bxa6 {[%emt 0:00:00]} Bg5 {[%emt 0:00:00]} 52. Ke2 {[%emt 0:00:00]} Ba8 {[%emt 0:00:00]} 53. Qb5 {[%emt 0:00:00]} Qe8 {[%emt 0:04:09]} 54. Nxb6 {[%emt 0:00:00]} Nxb6 {[%emt 0:00:10]} 55. Qxb6 {[%emt 0:00:00]} Kf7 {[%emt 0:01:09]} 56. Qxd6 {[%emt 0:00:49]} Qe7 {[%emt 0:00:38]} 57. Qxe7+ {[%emt 0:00:16]} Bxe7 {[%emt 0:00:13]} 58. Rxg8 {[%emt 0:00:22]} Kxg8 {[%emt 0:00:04]} 59. Na5 {[%emt 0:00:27]} Bd6 {[%emt 0:01:02]} 60. Nc6 {[%emt 0:00:30]} Kf8 {[%emt 0:00:29]} 61. Kd3 {[%emt 0:00:25]} Ke8 {[%emt 0:00:16]} 62. Kc4 {[%emt 0:00:35]} Kd7 {[%emt 0:00:28]} 63. Kb5 {[%emt 0:00:17]} Kc7 {[%emt 0:00:18]} 64. a4 {[%emt 0:00:43]} h4 {[%emt 0:00:48]} 65. a5 {[%emt 0:00:07]} Bxc6+ {[%emt 0:00:46]} 66. dxc6 {[%emt 0:00:10]} Kb8 {[%emt 0:00:24]} 67. Bc4 {[%emt 0:01:03]} Bc7 {[%emt 0:00:39]} 68. Be6 {[%emt 0:02:24]} Bd6 {[%emt 0:00:18]} 69. Bc4 {[%emt 0:01:21]} Ka7 {[%emt 0:00:25]} 70. Be6 {[%emt 0:00:54]} Bc7 {[%emt 0:00:13]} 71. Kc5 {[%emt 0:03:03]} Kxa6 {[%emt 0:00:15]} 72. Bd7 {[%emt 0:02:35]} Kxa5 {[%emt 0:00:23]} 73. Bc8 {[%emt 0:00:06]} Bb8 {[%emt 0:01:05]} 74. Bb7 {[%emt 0:00:23]} Bc7 {[%emt 0:00:25]} 75. Kd5 {[%emt 0:00:15]} Kb6 {[%emt 0:00:24]} 76. Ke6 {[%emt 0:00:07]} Bb8 {[%emt 0:00:16]} 77. Kf5 {[%emt 0:00:37]} Bd6 {[%emt 0:01:04]} 78. Kg5 {[%emt 0:00:52]} Be7+ {[%emt 0:00:07]} 79. Kf5 {[%emt 0:00:16]} Bd6 {[%emt 0:00:06]} 80. Ke6 {[%emt 0:00:03]} Bc7 {[%emt 0:00:15]} 81. Kd7 {[%emt 0:00:14]} Bb8 {[%emt 0:00:11]} 82. Ke6 {[%emt 0:01:15]} Bc7 {[%emt 0:00:31]} 83. Kf6 {[%emt 0:00:13]} Bd6 {[%emt 0:00:36]} 84. Kg5 {[%emt 0:01:22]} Be7+ {[%emt 0:00:09]} 85. Kg4 {[%emt 0:00:08]} Bd8 {[%emt 0:01:54]} 86. Kh5 {[%emt 0:00:17]} Be7 {[%emt 0:00:52]} 87. Kg6 {[%emt 0:00:25]} Bd8 {[%emt 0:00:21]} 88. Kf7 {[%emt 0:00:11]} Bc7 {[%emt 0:00:21]} 89. Kf6 {[%emt 0:00:45]} Bd6 {[%emt 0:00:09]} 1/2-1/2